fUSD/lending_fUSD_20250217
["ID","MTS","AMOUNT","RATE_DAILY","PERIOD"]
[353407828,1739817072287,-150.0,0.00014618,2]
[353407829,1739817072296,-151.0,0.00014621,2]
[353407830,1739817072306,-390.376454,0.00014621,2]
[353407831,1739817072316,-390.376454,0.00014621,2]
[353407832,1739817072325,-151.0,0.00014621,2]
[353407833,1739817072334,-151.0,0.00014621,2]
[353407834,1739817072343,-151.0,0.00014621,2]
[353407835,1739817072353,-254.230638,0.00014621,2]
[353407836,1739817072362,-151.0,0.00014621,2]
[353407837,1739817072372,-154.414108,0.00014621,2]
[353407838,1739817072381,-154.414108,0.00014621,2]
[353407839,1739817072391,-150.0,0.00014622,2]
[353407840,1739817072400,-150.0,0.00014622,2]
[353407841,1739817072410,-150.0,0.00014623,2]
[353407842,1739817072420,-150.0,0.00014628,2]
[353407843,1739817072429,-150.0,0.00014629,2]
[353407844,1739817072438,-390.98687592,0.00014632,2]
[353407845,1739817072447,-150.0,0.00014632,2]
[353407846,1739817072458,-150.0,0.00014635,2]
[353407847,1739817072467,-150.0,0.0001464,2]
[353407848,1739817072477,-150.0,0.00014642,2]
[353407849,1739817072487,-150.0,0.00014647,2]
[353407850,1739817072497,-150.0,0.00014648,2]
[353407851,1739817072506,-150.0,0.00014653,2]
[353407852,1739817072516,-150.0,0.00014653,2]
[353407853,1739817072525,-150.0,0.00014655,2]
[353407854,1739817072535,-150.0,0.00014656,2]
[353407855,1739817072545,-1000.0,0.00014657,2]
[353407856,1739817072555,-150.0,0.00014663,2]
[353407857,1739817072564,-150.0,0.00014664,2]
[353407858,1739817072574,-150.0,0.00014666,2]
[353407859,1739817072583,-150.0,0.00014666,2]
[353407860,1739817072593,-150.0,0.00014669,2]
[353407861,1739817072602,-150.0,0.0001467,2]
[353407862,1739817072611,-150.0,0.00014672,2]
[353407863,1739817072621,-150.0,0.00014674,2]
[353407864,1739817072631,-508.01344156,0.00014675,2]
[353407865,1739817072640,-150.0,0.00014678,2]
[353407866,1739817072649,-150.0,0.00014678,2]
[353407867,1739817072659,-1000.0,0.00014679,2]
[353407868,1739817072669,-150.0,0.00014679,2]
[353407869,1739817072678,-150.0,0.00014679,2]
[353407870,1739817072688,-150.0,0.0001468,2]
[353407871,1739817072697,-212.129909,0.00014684,2]
[353407872,1739817072707,-324.554653,0.00014684,2]
[353407873,1739817072717,-182.042612,0.00014684,2]
[353407874,1739817072726,-182.042604,0.00014684,2]
[353407875,1739817072735,-182.042604,0.00014684,2]
[353407876,1739817072745,-182.042604,0.00014684,2]
[353407877,1739817072754,-617.78014225,0.00014684,2]
[353407878,1739817072763,-500.0,0.00014684,2]
[353407879,1739817072773,-500.0,0.00014684,2]
[353407880,1739817072787,-637.31,0.00014684,2]
[353407881,1739817072798,-391.48742907,0.00014684,2]
[353407882,1739817072807,-500.0,0.00014684,2]
[353407883,1739817072817,-520.06,0.00014684,2]
[353407884,1739817072827,-438.41194374,0.00014684,2]
[353407885,1739817072836,-938.49,0.00014684,2]
[353407886,1739817072846,-500.0,0.00014684,2]
[353407887,1739817072855,-527.54,0.00014684,2]
[353407888,1739817072864,-182.042604,0.00014684,2]
[353407889,1739817072874,-500.0,0.00014684,2]
[353407890,1739817072887,-322.80324048,0.00014684,2]
[353407891,1739817072897,-703.03,0.00014684,2]
[353407892,1739817072907,-709.36,0.00014684,2]
[353407893,1739817072916,-500.0,0.00014684,2]
[353407894,1739817072927,-371.05336396,0.00014684,2]
[353407895,1739817072938,-675.42,0.00014684,2]
[353407896,1739817072947,-180.896505,0.00014684,2]
[353407897,1739817072958,-500.0,0.00014684,2]
[353407898,1739817072968,-505.6,0.00014684,2]
[353407899,1739817072978,-500.0,0.00014684,2]
[353407900,1739817072987,-500.0,0.00014684,2]
[353407901,1739817072996,-638.73,0.00014684,2]
[353407902,1739817073006,-571.56,0.00014684,2]
[353407903,1739817073016,-295.38832854,0.00014684,2]
[353407904,1739817073025,-182.042605,0.00014684,2]
[353407905,1739817073035,-628.39,0.00014684,2]
[353407906,1739817073045,-500.0,0.00014684,2]
[353407907,1739817073057,-500.0,0.00014684,2]
[353407908,1739817073067,-752.97,0.00014684,2]
[353407909,1739817073077,-500.0,0.00014684,2]
[353407910,1739817073087,-500.0,0.00014684,2]
[353407911,1739817073097,-500.0,0.00014684,2]
[353407912,1739817073107,-563.15,0.00014684,2]
[353407913,1739817073116,-500.0,0.00014684,2]
[353407914,1739817073126,-1009.3,0.00014684,2]
[353407915,1739817073136,-500.0,0.00014684,2]
[353407916,1739817073145,-546.19682611,0.00014684,2]
[353407917,1739817073155,-500.0,0.00014684,2]
[353407918,1739817073164,-500.0,0.00014684,2]
[353407919,1739817073173,-500.0,0.00014684,2]
[353407920,1739817073182,-171.644852,0.00014684,2]
[353407921,1739817073191,-171.644852,0.00014684,2]
[353407922,1739817073200,-637.8329803,0.00014684,2]
[353407923,1739817073211,-518.57337493,0.00014684,2]
[353407924,1739817073220,-565.46,0.00014684,2]
[353407925,1739817073230,-643.79,0.00014684,2]
[353407926,1739817073239,-151.0,0.00014684,2]
[353407927,1739817073248,-1594.07,0.00014684,2]
[353407928,1739817073258,-832.31,0.00014684,2]
[353407929,1739817073267,-1331.41,0.00014684,2]
[353407930,1739817073278,-1191.93,0.00014684,2]
[353407931,1739817073287,-151.0,0.00014684,2]
[353407932,1739817073296,-613.53,0.00014684,2]
[353407933,1739817073305,-3245.66,0.00014684,2]
[353407934,1739817073314,-481.43273827,0.00014684,2]
[353407935,1739817073323,-1602.85,0.00014684,2]
[353407936,1739817073333,-244.92479,0.00014684,2]
[353407937,1739817073342,-151.0,0.00014684,2]
[353407938,1739817073351,-151.0,0.00014684,2]
[353407939,1739817073361,-151.0,0.00014684,2]
[353407940,1739817073371,-1174.07,0.00014684,2]
[353407941,1739817073380,-787.36,0.00014684,2]
[353407942,1739817073390,-270.974476,0.00014684,2]
[353407943,1739817073400,-597.6,0.00014684,2]
[353407944,1739817073409,-270.974476,0.00014684,2]
[353407945,1739817073418,-1912.36,0.00014684,2]
[353407946,1739817073428,-1331.58,0.00014684,2]
[353407947,1739817073437,-500.0,0.00014684,2]
[353407948,1739817073447,-1287.66,0.00014684,2]
[353407949,1739817073457,-562.46,0.00014684,2]
[353407950,1739817073467,-849.74,0.00014684,2]
[353407951,1739817073476,-294.99939241,0.00014684,2]
[353407952,1739817073491,-450.20060759,0.00014684,2]
[353407953,1739817073500,-566.99,0.00014684,2]
[353407954,1739817073510,-549.59,0.00014684,2]
[353407955,1739817073520,-736.81,0.00014684,2]
[353407956,1739817073529,-1869.49,0.00014684,2]
[353407957,1739817073539,-228.74382649,0.00014684,2]
[353407958,1739817073551,-689.04617351,0.00014684,2]
[353407959,1739817073561,-867.32,0.00014684,2]
[353407960,1739817073571,-275.18722698,0.00014684,2]
[353407961,1739817073581,-599.7,0.00014684,2]
[353407962,1739817073591,-992.25,0.00014684,2]
[353407963,1739817073601,-1248.25,0.00014684,2]
[353407964,1739817073611,-1034.43,0.00014684,2]
[353407965,1739817073620,-425.46080261,0.00014684,2]
[353407966,1739817073630,-770.08,0.00014684,2]
[353407967,1739817073640,-937.95,0.00014684,2]
[353407968,1739817073650,-1106.33,0.00014684,2]
[353407969,1739817073659,-855.4,0.00014684,2]
[353407970,1739817073669,-766.63,0.00014684,2]
[353407971,1739817073679,-500.0,0.00014684,2]
[353407972,1739817073689,-871.51,0.00014684,2]
[353407973,1739817073700,-697.18,0.00014684,2]
[353407974,1739817073711,-560.97,0.00014684,2]
[353407975,1739817073721,-732.42,0.00014684,2]
[353407976,1739817073730,-1728.78,0.00014684,2]
[353407977,1739817073740,-712.45,0.00014684,2]
[353407978,1739817073750,-881.49,0.00014684,2]
[353407979,1739817073760,-513.29,0.00014684,2]
[353407980,1739817073771,-860.0,0.00014684,2]
[353407981,1739817073781,-797.71,0.00014684,2]
[353407982,1739817073791,-3858.73,0.00014684,2]
[353407983,1739817073801,-885.55,0.00014684,2]
[353407984,1739817073811,-1088.65,0.00014684,2]
[353407985,1739817073821,-500.0,0.00014684,2]
[353407986,1739817073831,-918.24,0.00014684,2]
[353407987,1739817073841,-1203.48,0.00014684,2]
[353407988,1739817073850,-1146.63,0.00014684,2]
[353407989,1739817073860,-793.62,0.00014684,2]
[353407990,1739817073871,-1168.4,0.00014684,2]
[353407991,1739817073881,-757.31,0.00014684,2]
[353407992,1739817073891,-990.01,0.00014684,2]
[353407993,1739817073901,-790.25,0.00014684,2]
[353407994,1739817073911,-1217.01,0.00014684,2]
[353407995,1739817073921,-718.94,0.00014684,2]
[353407996,1739817073930,-500.0,0.00014684,2]
[353407997,1739817073940,-680.28,0.00014684,2]
[353407998,1739817073950,-1276.37,0.00014684,2]
[353407999,1739817073961,-500.0,0.00014684,2]
[353408000,1739817073971,-678.99,0.00014684,2]
[353408001,1739817073981,-914.1,0.00014684,2]
[353408002,1739817073991,-854.97,0.00014684,2]
[353408003,1739817074001,-1540.6,0.00014684,2]
[353408004,1739817074013,-705.63,0.00014684,2]
[353408005,1739817074023,-917.85,0.00014684,2]
[353408006,1739817074036,-769.56,0.00014684,2]
[353408007,1739817074046,-983.72,0.00014684,2]
[353408008,1739817074057,-1445.12,0.00014684,2]
[353408009,1739817074067,-779.26,0.00014684,2]
[353408010,1739817074076,-564.39,0.00014684,2]
[353408011,1739817074087,-626.04,0.00014684,2]
[353408012,1739817074097,-1013.2,0.00014684,2]
[353408013,1739817074107,-500.0,0.00014684,2]
[353408014,1739817074116,-2061.01,0.00014684,2]
[353408015,1739817074126,-500.0,0.00014684,2]
[353408016,1739817074137,-856.02,0.00014684,2]
[353408017,1739817074147,-626.76,0.00014684,2]
[353408018,1739817074156,-874.57,0.00014684,2]
[353408019,1739817074165,-957.74,0.00014684,2]
[353408020,1739817074175,-500.0,0.00014684,2]
[353408021,1739817074184,-2399.52,0.00014684,2]
[353408022,1739817074195,-932.0,0.00014684,2]
[353408023,1739817074205,-1149.24,0.00014684,2]
[353408024,1739817074215,-500.0,0.00014684,2]
[353408025,1739817074225,-289.27625837,0.00014684,2]
[353408026,1739817074234,-729.63,0.00014684,2]
[353408027,1739817074244,-1026.51,0.00014684,2]
[353408028,1739817074255,-593.41,0.00014684,2]
[353408029,1739817074264,-1215.29,0.00014684,2]
[353408030,1739817074273,-646.83,0.00014684,2]
[353408031,1739817074283,-538.83,0.00014684,2]
[353408032,1739817074293,-902.35,0.00014684,2]
[353408033,1739817074302,-644.92,0.00014684,2]
[353408034,1739817074311,-1255.58,0.00014684,2]
[353408035,1739817074321,-500.0,0.00014684,2]
[353408036,1739817074331,-1054.84,0.00014684,2]
[353408037,1739817074342,-737.27,0.00014684,2]
[353408038,1739817074352,-2118.94,0.00014684,2]
[353408039,1739817074362,-1255.01,0.00014684,2]
[353408040,1739817074372,-766.68,0.00014684,2]
[353408041,1739817074381,-500.0,0.00014684,2]
[353408042,1739817074391,-548.79,0.00014684,2]
[353408043,1739817074401,-500.0,0.00014684,2]
[353408044,1739817074412,-1306.56,0.00014684,2]
[353408045,1739817074424,-649.85,0.00014684,2]
[353408046,1739817074434,-817.66,0.00014684,2]
[353408047,1739817074444,-500.0,0.00014684,2]
[353408048,1739817074453,-894.99,0.00014684,2]
[353408049,1739817074464,-150.0,0.00014686,2]
[353408050,1739817074473,-500.0,0.00014688,2]
[353408051,1739817074483,-150.0,0.00014695,2]
[353408052,1739817074493,-150.0,0.00014699,2]
[353408053,1739817074502,-216.0,0.000147,2]
[353408054,1739817074512,-204.0,0.000147,2]
[353408055,1739817074521,-216.0,0.000147,2]
[353408056,1739817074530,-207.0,0.000147,2]
[353408057,1739817074540,-150.0,0.00014711,2]
[353408058,1739817074552,-150.0,0.00014713,2]
[353408059,1739817074562,-150.0,0.00014714,2]
[353408060,1739817074572,-150.0,0.00014719,2]
[353408061,1739817074583,-150.0,0.00014719,2]
[353408062,1739817074593,-150.0,0.0001472,2]
[353408063,1739817074603,-150.0,0.00014721,2]
[353408064,1739817074614,-150.0,0.00014721,2]
[353408065,1739817074624,-150.0,0.00014724,2]
[353408066,1739817074634,-432.08438454,0.00014728,2]
[353408067,1739817074644,-150.0,0.0001473,2]
[353408068,1739817074654,-150.0,0.0001473,2]
[353408069,1739817074664,-150.0,0.00014731,2]
[353408070,1739817074674,-176.28048689,0.00014732,2]
[353408071,1739817074684,-150.0,0.00014736,2]
[353408072,1739817074694,-150.0,0.00014736,2]
[353408073,1739817074705,-150.0,0.0001474,2]
[353408074,1739817074715,-150.0,0.0001474,2]
[353408075,1739817074724,-150.0,0.0001474,2]
[353408076,1739817074734,-150.0,0.00014743,2]
[353408077,1739817074744,-150.0,0.00014745,2]
[353408078,1739817074755,-150.0,0.00014746,2]
[353408079,1739817074765,-1000.0,0.00014748,2]
[353408080,1739817074775,-150.0,0.00014748,2]
[353408081,1739817074785,-275.92953046,0.00014751,2]
[353408082,1739817074795,-150.0,0.00014752,2]
[353408083,1739817074805,-150.0,0.00014755,2]
[353408084,1739817074816,-150.0,0.00014756,2]
[353408085,1739817074826,-150.0,0.00014757,2]
[353408086,1739817074837,-150.0,0.00014762,2]
[353408087,1739817074847,-150.0,0.00014764,2]
[353408088,1739817074858,-150.0,0.00014765,2]
[353408089,1739817074867,-212.129909,0.00014767,2]
[353408090,1739817074878,-324.554653,0.00014767,2]
[353408091,1739817074888,-500.0,0.00014767,2]
[353408092,1739817074898,-500.0,0.00014767,2]
[353408093,1739817074908,-637.31,0.00014767,2]
[353408094,1739817074918,-500.0,0.00014767,2]
[353408095,1739817074928,-520.06,0.00014767,2]
[353408096,1739817074938,-938.49,0.00014767,2]
[353408097,1739817074948,-500.0,0.00014767,2]
[353408098,1739817074959,-527.54,0.00014767,2]
[353408099,1739817074969,-500.0,0.00014767,2]
[353408100,1739817074979,-151.0,0.00014767,2]
[353408101,1739817074988,-703.03,0.00014767,2]
[353408102,1739817074998,-709.36,0.00014767,2]
[353408103,1739817075009,-500.0,0.00014767,2]
[353408104,1739817075019,-675.42,0.00014767,2]
[353408105,1739817075030,-151.0,0.00014767,2]
[353408106,1739817075039,-500.0,0.00014767,2]
[353408107,1739817075050,-505.6,0.00014767,2]
[353408108,1739817075064,-500.0,0.00014767,2]
[353408109,1739817075073,-500.0,0.00014767,2]
[353408110,1739817075083,-638.73,0.00014767,2]
[353408111,1739817075093,-571.56,0.00014767,2]
[353408112,1739817075103,-628.39,0.00014767,2]
[353408113,1739817075115,-247.36606085,0.00014767,2]
[353408114,1739817075124,-500.0,0.00014767,2]
[353408115,1739817075137,-752.97,0.00014767,2]
[353408116,1739817075148,-500.0,0.00014767,2]
[353408117,1739817075159,-500.0,0.00014767,2]
[353408118,1739817075169,-151.0,0.00014767,2]
[353408119,1739817075180,-500.0,0.00014767,2]
[353408120,1739817075190,-563.15,0.00014767,2]
[353408121,1739817075200,-150.0,0.00014767,2]
[353408122,1739817075211,-500.0,0.00014767,2]
[353408123,1739817075221,-1009.3,0.00014767,2]
[353408124,1739817075231,-500.0,0.00014767,2]
[353408125,1739817075242,-500.0,0.00014767,2]
[353408126,1739817075252,-500.0,0.00014767,2]
[353408127,1739817075262,-500.0,0.00014767,2]
[353408128,1739817075272,-565.46,0.00014767,2]
[353408129,1739817075282,-643.79,0.00014767,2]
[353408130,1739817075293,-1594.07,0.00014767,2]
[353408131,1739817075302,-832.31,0.00014767,2]
[353408132,1739817075312,-1331.41,0.00014767,2]
[353408133,1739817075323,-1191.93,0.00014767,2]
[353408134,1739817075333,-613.53,0.00014767,2]
[353408135,1739817075343,-3245.66,0.00014767,2]
[353408136,1739817075354,-1602.85,0.00014767,2]
[353408137,1739817075364,-1174.07,0.00014767,2]
[353408138,1739817075374,-787.36,0.00014767,2]
[353408139,1739817075384,-597.6,0.00014767,2]
[353408140,1739817075394,-1912.36,0.00014767,2]
[353408141,1739817075404,-1331.58,0.00014767,2]
[353408142,1739817075415,-500.0,0.00014767,2]
[353408143,1739817075426,-1287.66,0.00014767,2]
[353408144,1739817075436,-562.46,0.00014767,2]
[353408145,1739817075445,-849.74,0.00014767,2]
[353408146,1739817075455,-745.2,0.00014767,2]
[353408147,1739817075466,-566.99,0.00014767,2]
[353408148,1739817075476,-549.59,0.00014767,2]
[353408149,1739817075486,-736.81,0.00014767,2]
[353408150,1739817075504,-1869.49,0.00014767,2]
[353408151,1739817075514,-917.79,0.00014767,2]
[353408152,1739817075524,-867.32,0.00014767,2]
[353408153,1739817075534,-599.7,0.00014767,2]
[353408154,1739817075544,-992.25,0.00014767,2]
[353408155,1739817075554,-1248.25,0.00014767,2]
[353408156,1739817075565,-1034.43,0.00014767,2]
[353408157,1739817075574,-770.08,0.00014767,2]
[353408158,1739817075583,-937.95,0.00014767,2]
[353408159,1739817075594,-1106.33,0.00014767,2]
[353408160,1739817075604,-855.4,0.00014767,2]
[353408161,1739817075614,-766.63,0.00014767,2]
[353408162,1739817075624,-540.39,0.00014767,2]
[353408163,1739817075634,-871.51,0.00014767,2]
[353408164,1739817075644,-697.18,0.00014767,2]
[353408165,1739817075653,-560.97,0.00014767,2]
[353408166,1739817075663,-732.42,0.00014767,2]
[353408167,1739817075673,-1728.78,0.00014767,2]
[353408168,1739817075683,-712.45,0.00014767,2]
[353408169,1739817075692,-881.49,0.00014767,2]
[353408170,1739817075703,-513.29,0.00014767,2]
[353408171,1739817075714,-860.0,0.00014767,2]
[353408172,1739817075724,-797.71,0.00014767,2]
[353408173,1739817075734,-3858.73,0.00014767,2]
[353408174,1739817075744,-885.55,0.00014767,2]
[353408175,1739817075754,-1088.65,0.00014767,2]
[353408176,1739817075763,-500.0,0.00014767,2]
[353408177,1739817075773,-918.24,0.00014767,2]
[353408178,1739817075783,-1203.48,0.00014767,2]
[353408179,1739817075793,-1146.63,0.00014767,2]
[353408180,1739817075803,-676.75817615,0.00014767,2]
[353408181,1739817075872,-104.21602926,0.00014767,2]
[353408182,1739817076371,-550.0,0.0001,2]
[353408183,1739817076381,-600.0,0.00012,2]
[353408184,1739817076391,-335.2418606,0.00013698,2]
[353408185,1739817076401,-500.0,0.00014602,2]
[353408186,1739817076411,-500.0,0.00014684,2]
[353408187,1739817076420,-12.64579459,0.00014767,2]
[353408188,1739817076430,-1168.4,0.00014767,2]
[353408189,1739817076440,-175.81280657,0.00014767,2]
[353408190,1739817076451,-581.49719343,0.00014767,2]
[353408191,1739817076462,-990.01,0.00014767,2]
[353408192,1739817076472,-790.25,0.00014767,2]
[353408193,1739817076482,-1217.01,0.00014767,2]
[353408194,1739817076492,-718.94,0.00014767,2]
[353408195,1739817076502,-500.0,0.00014767,2]
[353408196,1739817076512,-674.09280449,0.00014767,2]
[353408197,1739817241891,1342.9371,8.699e-05,2]
[353408198,1739817256466,312.8547,8.699e-05,2]
[353408199,1739817267648,31052.5098,8.699e-05,2]
[353408200,1739817272177,1397.1313,8.699e-05,2]
[353408201,1739817280861,6390.8256,8.256e-05,2]
[353408202,1739817293906,447.534,8.119e-05,2]
[353408203,1739817356890,1943.1184,8.119e-05,2]
[353408204,1739817373863,312.1844,8.699e-05,2]
[353408205,1739817413548,-300.0,8.835e-05,2]
[353408206,1739817413574,-150.0,8.835e-05,2]
[353408207,1739817413599,-19550.0,8.836e-05,2]
[353408208,1739817421411,-498.1177,8.836e-05,2]
[353408209,1739817421438,-19501.8823,8.836e-05,2]
[353408210,1739817436350,2011.7659,8.699e-05,2]
[353408211,1739817447030,-11653.0022,8.836e-05,2]
[353408212,1739817447056,-28346.9978,8.836e-05,2]
[353408213,1739817479162,8869.5348,8.699e-05,2]
[353408214,1739817489111,-40000.0,8.836e-05,2]
[353408215,1739817495515,-30000.0,8.836e-05,2]
[353408216,1739817530323,682.23324917,0.00020207,120]
[353408217,1739817531767,682.23324914,0.00020207,120]
[353408218,1739817532208,682.23324914,0.00020207,120]
[353408219,1739817533181,682.23324914,0.00020207,120]
[353408220,1739817534200,682.23324914,0.00020207,120]
[353408221,1739817534694,-40000.0,8.836e-05,2]
[353408222,1739817535204,682.23324914,0.00020207,120]
[353408223,1739817536255,682.23324914,0.00020207,120]
[353408224,1739817537178,682.23324914,0.00020207,120]
[353408225,1739817538494,682.23324914,0.00020207,120]
[353408226,1739817539226,682.23324914,0.00020207,120]
[353408227,1739817542105,-10000.0,8.836e-05,2]
[353408228,1739817547279,-150.0,8.835e-05,2]
[353408229,1739817547306,-9850.0,8.836e-05,2]
[353408230,1739817618169,-20000.0,8.836e-05,2]
[353408231,1739817619427,1307.63,8.699e-05,2]
[353408232,1739817624779,-25587.6214,8.836e-05,2]
[353408233,1739817624807,-13176.1628,8.836e-05,2]
[353408234,1739817624849,-738.3979,8.836e-05,2]
[353408235,1739817624875,-394.9388,8.836e-05,2]
[353408236,1739817822680,-150.0,8.835e-05,2]
[353408237,1739817822705,-9824.4276,8.836e-05,2]
[353408238,1739817822730,-10025.5724,8.836e-05,2]
[353408264,1739818234917,-150.0,8.822e-05,2]
[353408265,1739818234926,-150.0,8.828e-05,2]
[353408266,1739818234936,-1185.39254606,8.835e-05,2]
[353408267,1739818234945,-150.0,8.835e-05,2]
[353408268,1739818234954,-26252.7144,8.836e-05,2]
[353408269,1739818234964,-5347.12,8.836e-05,2]
[353408270,1739818234973,-4967.3798,8.836e-05,2]
[353408271,1739818234982,-1620.1592,8.836e-05,2]
[353408272,1739818234991,-33862.04951123,8.836e-05,2]
[353408273,1739818235001,-150.0,8.837e-05,2]
[353408274,1739818235010,-200.0,8.84e-05,2]
[353408275,1739818235019,-500.0,8.851e-05,2]
[353408276,1739818235029,-1000.0,8.851e-05,2]
[353408277,1739818235038,-3063.7542,8.973e-05,2]
[353408278,1739818235047,-150.0,9.704e-05,2]
[353408279,1739818235056,-329.35,9.704e-05,2]
[353408280,1739818235066,-9999.99,9.704e-05,2]
[353408281,1739818235075,-999.99,9.704e-05,2]
[353408282,1739818235084,-499.99,9.704e-05,2]
[353408283,1739818235093,-1385.72,9.704e-05,2]
[353408284,1739818235102,-3610.22,9.704e-05,2]
[353408285,1739818235112,-9999.99,9.704e-05,2]
[353408286,1739818235122,-255.0,9.718e-05,2]
[353408287,1739818235131,-814.07,9.718e-05,2]
[353408288,1739818235141,-63737.44,9.718e-05,2]
[353408289,1739818235150,-10008.65,9.718e-05,2]
[353408290,1739818235159,-3006.57,9.718e-05,2]
[353408291,1739818235168,-150.99,9.718e-05,2]
[353408292,1739818235177,-9999.99,9.718e-05,2]
[353408293,1739818235187,-299.99,9.718e-05,2]
[353408294,1739818235196,-150.99,9.718e-05,2]
[353408295,1739818235208,-200.0,9.719e-05,2]
[353408296,1739818235217,-1953.31,9.765e-05,2]
[353408297,1739818235227,-10924.12783821,9.88e-05,2]
[353408298,1739818235238,-900.0,9.968e-05,2]
[353408299,1739818235247,-1100.0,9.968e-05,2]
[353408300,1739818235257,-151.02,0.00010137,2]
[353408301,1739818235266,-433.0,0.0001069,2]
[353408302,1739818235275,-500.0,0.00011064,2]
[353408303,1739818235285,-240.87159023,0.00011171,2]
[353408304,1739818235294,-900.0,0.00011338,2]
[353408306,1739818235303,-1100.0,0.00011338,2]
[353408308,1739818235312,-1033.03,0.00011427,2]
[353408310,1739818235321,-232.15504956,0.0001155,2]
[353408312,1739818235330,-1802.99,0.00011596,2]
[353408314,1739818235340,-510.16,0.0001166,2]
[353408316,1739818235349,-1000.0,0.00011783,2]
[353408318,1739818235358,-596.49,0.00011887,2]
[353408320,1739818235368,-2751.0,0.00011917,2]
[353408322,1739818235378,-250.0,0.00011929,2]
[353408324,1739818235387,-3195.78891418,0.00011972,2]
[353408326,1739818235396,-1705.0,0.00011977,2]
[353408328,1739818235405,-1953.31,0.00012029,2]
[353408330,1739818235415,-25432.94,0.0001204,2]
[353408332,1739818235428,-2000.0,0.0001213,2]
[353408334,1739818235437,-500.0,0.00012202,2]
[353408336,1739818235447,-1852.42,0.00012286,2]
[353408338,1739818235457,-157.98,0.00012608,2]
[353408340,1739818235466,-900.0,0.00012708,2]
[353408342,1739818235476,-504.46,0.00012843,2]
[353408344,1739818235485,-250.0,0.00013026,2]
[353408348,1739818235495,-603.17439364,0.00013221,2]
[353408351,1739818235504,-1000.0,0.00013256,2]
[353408354,1739818235515,-11265.40556332,0.00013313,2]
[353408357,1739818235524,-186.57314544,0.00013313,2]
[353408360,1739818235533,-5005.97755,0.0001332,2]
[353408363,1739818235542,-596.49,0.00013373,2]
[353408365,1739818235551,-150.0,0.00013389,2]
[353408368,1739818235560,-150.0,0.00013389,2]
[353408371,1739818235570,-150.0,0.00013389,2]
[353408373,1739818235580,-150.0,0.00013389,2]
[353408374,1739818235589,-150.0,0.00013488,2]
[353408376,1739818235599,-150.0,0.00013524,2]
[353408378,1739818235608,-200.0,0.00013531,2]
[353408380,1739818235619,-200.0,0.00013531,2]
[353408382,1739818235629,-200.0,0.00013531,2]
[353408384,1739818235638,-200.0,0.00013531,2]
[353408386,1739818235648,-200.0,0.00013531,2]
[353408388,1739818235657,-200.0,0.00013531,2]
[353408390,1739818235667,-200.0,0.00013531,2]
[353408392,1739818235677,-200.0,0.00013531,2]
[353408394,1739818235686,-200.0,0.00013531,2]
[353408396,1739818235696,-200.0,0.00013531,2]
[353408398,1739818235705,-200.0,0.00013531,2]
[353408400,1739818235714,-200.0,0.00013531,2]
[353408402,1739818235723,-200.0,0.00013531,2]
[353408404,1739818235732,-200.0,0.00013531,2]
[353408406,1739818235741,-200.0,0.00013531,2]
[353408408,1739818235750,-200.0,0.00013531,2]